bitfinex-derivatives/quotes_ETHF0:USTF0_20251223
["timestamp","ask_amount","ask_price","bid_price","bid_amount"]
[1766471390330,3.387,2954.6,2952.7,2.27681318]
[1766471390534,0.00508009,2953.9,2952.8,17.25177771]
[1766471391339,3.387,2954.6,2952.8,17.25177771]
[1766471394646,3.387,2954.6,2953.1,2.27173309]
[1766471394842,3.387,2954.6,2953.2,3.387]
[1766471395143,3.387,2954.6,2953.3,6.487]
[1766471396143,3.387,2954.6,2953.4,9.874]
[1766471397346,3.387,2954.6,2953.5,6.486]
[1766471397542,3.387,2954.6,2953.6,3.387]
[1766471397738,3.387,2954.6,2952.8,3.90269491]
[1766471397947,3.387,2954.6,2952.9,5.948]
[1766471400344,3.387,2954.6,2953.3,2.27173309]
[1766471400542,3.387,2954.6,2953.4,9.872]
[1766471400743,3.387,2954.6,2953.4,6.485]
[1766471401249,2.27173309,2953.5,2952.1,3.387]
[1766471401445,9.276,2953.4,2952.1,3.387]
[1766471401649,3.387,2953.3,2952.1,3.387]
[1766471402046,0.00508009,2953.0,2952.5,0.00508009]
[1766471402247,3.387,2952.9,2952.5,0.00508009]
[1766471403142,3.387,2952.9,2952.1,3.387]
[1766471403539,3.387,2952.9,2951.0,2.27173309]
[1766471403746,2.27173309,2952.4,2950.9,3.387]
[1766471403948,9.276,2952.3,2950.9,3.387]
[1766471404144,9.276,2952.3,2951.3,0.00508009]
[1766471404444,9.276,2952.3,2950.0,0.8919268]
[1766471404445,2.27173309,2952.0,2949.9,0.933]
[1766471404648,0.00237843,2952.0,2950.0,3.387]
[1766471404843,0.00237843,2952.0,2950.2,2.27173309]
[1766471405148,3.387,2951.9,2950.3,3.387]
[1766471405347,0.00508009,2951.4,2950.8,0.00508009]
[1766471405650,3.387,2951.8,2950.9,3.387]
[1766471405848,3.387,2951.8,2950.8,0.00508009]
[1766471406554,0.00508009,2951.6,2950.8,0.00508009]
[1766471406753,3.388,2951.5,2950.8,0.00508009]
[1766471406945,0.00508009,2951.6,2950.8,0.00508009]
[1766471407250,3.388,2951.5,2950.8,0.00508009]
[1766471407640,3.388,2951.5,2949.9,0.00420474]
[1766471407845,2.27173309,2951.2,2949.9,0.00420474]
[1766471408040,9.279,2951.1,2949.9,0.00420474]
[1766471408452,9.44854,2951.1,2949.9,0.00420474]
[1766471408755,2.27173309,2950.9,2950.2,0.00508009]
[1766471408956,3.55756,2950.8,2948.2,2.27173309]
[1766471409153,2.27173309,2950.5,2948.3,18.344]
[1766471409458,17.751,2950.4,2948.3,21.95856906]
[1766471409858,0.00508009,2949.6,2949.1,0.00508009]
[1766471410070,3.388,2949.5,2949.1,0.00508009]
[1766471410941,0.00770846,2949.6,2949.2,0.00420474]
[1766471411151,3.389,2950.3,2949.5,0.00420474]
[1766471411550,3.389,2950.3,2949.6,3.389]
[1766471411857,0.16953,2951.3,2949.6,3.389]
[1766471412056,0.00508009,2950.7,2950.0,0.00420474]
[1766471412355,0.00508009,2950.7,2950.1,3.389]
[1766471412553,0.00508009,2950.7,2950.0,0.00420474]
[1766471412745,3.389,2950.6,2949.8,3.389]
[1766471413354,3.389,2950.6,2949.8,3.39320474]
[1766471413861,3.389,2950.6,2949.8,3.389]
[1766471414061,3.389,2950.6,2949.8,3.39320474]
[1766471414553,3.389,2950.6,2949.8,0.00420474]
[1766471415251,0.00508009,2950.7,2949.9,3.39]
[1766471415451,3.39,2950.6,2949.9,3.39]
[1766471416150,0.00508009,2950.7,2949.9,3.39]
[1766471417256,8.64449,2952.0,2950.1,2.27173309]
[1766471417552,5.449,2951.9,2950.7,0.00104073]
[1766471417749,8.839,2951.9,2950.7,3.39104073]
[1766471417949,8.839,2951.9,2950.7,3.39]
[1766471418144,0.00508009,2951.6,2951.0,0.00508009]
[1766471418350,3.39,2951.5,2951.0,0.00898593]
[1766471419255,3.39,2951.5,2951.0,0.01002666]
[1766471420052,3.39,2952.1,2951.0,3.40002666]
[1766471420253,3.39,2952.2,2951.0,3.39898593]
[1766471420457,3.39,2952.2,2951.2,0.00104073]
[1766471420752,3.39,2952.2,2951.3,3.39]
[1766471420961,3.39,2952.5,2951.3,3.39]
[1766471422050,3.39294394,2952.5,2951.3,3.39]
[1766471422251,3.39294394,2952.5,2951.3,11.865]
[1766471422551,3.39294394,2952.5,2951.2,0.00104073]
[1766471422756,3.39294394,2952.5,2951.3,3.39]
[1766471422950,3.39294394,2952.5,2951.1,3.39]
[1766471424964,3.39294394,2952.5,2951.1,3.39104073]
[1766471427462,0.00294394,2952.5,2951.1,3.39104073]
[1766471427663,3.389,2952.4,2951.1,3.39104073]
[1766471428859,0.00294394,2952.5,2951.1,3.39104073]
[1766471429055,0.00294394,2952.5,2951.2,3.57042465]
[1766471429255,0.00294394,2952.5,2951.3,8.474]
[1766471429455,0.00294394,2952.5,2951.4,8.493]
[1766471429658,8.474,2953.3,2951.4,12.42362858]
[1766471429854,3.389,2953.6,2952.1,2.57706462]
[1766471430056,3.389,2953.7,2952.6,0.00508009]
[1766471430251,3.389,2953.6,2952.7,3.389]
[1766471430661,3.39277759,2953.6,2952.8,0.00104073]
[1766471431858,3.39277759,2953.6,2952.7,3.389]
[1766471432059,3.39277759,2953.6,2952.9,0.00104073]
[1766471432258,3.39277759,2953.6,2952.7,3.389]
[1766471432473,3.39277759,2953.6,2952.7,3.39004073]
[1766471435562,3.39277759,2953.6,2952.7,0.00104073]
[1766471435762,3.39277759,2953.6,2952.8,3.389]
[1766471436366,0.00377759,2953.6,2952.8,3.389]
[1766471436661,3.389,2953.9,2952.8,3.389]
[1766471436859,3.388,2954.0,2952.8,3.39004073]
[1766471437059,8.472,2954.6,2952.8,3.39004073]
[1766471437060,3.388,2954.1,2952.8,3.39004073]
[1766471437462,8.472,2955.3,2953.1,2.57706462]
[1766471437767,3.388,2955.2,2953.9,0.00508009]
[1766471437955,3.388,2955.2,2954.0,3.388]
[1766471438157,3.388,2955.2,2953.9,0.00508009]
[1766471438663,3.39130751,2955.2,2953.9,0.00878261]
[1766471438858,3.56061751,2955.2,2953.9,0.00878261]
[1766471439866,0.16931,2955.1,2953.9,0.00878261]
[1766471442658,0.16932,2955.0,2953.9,0.00878261]
[1766471442858,0.16933,2954.8,2952.6,40.8]
[1766471443059,0.16935,2954.5,2951.8,2.57706462]
[1766471443263,5.226,2954.4,2952.4,0.00104073]
[1766471443454,5.226,2954.4,2952.5,3.388]
[1766471443663,5.226,2954.4,2952.4,0.00104073]
[1766471443964,0.00508009,2953.7,2953.1,0.00508009]
[1766471444164,0.00508009,2953.7,2953.1,3.39208009]
[1766471445160,3.387,2954.1,2953.1,3.39208009]
[1766471445561,0.16935,2954.4,2953.1,3.39208009]
[1766471445762,3.387,2954.3,2953.1,3.39208009]
[1766471448774,2.57706462,2954.1,2953.2,0.00104073]
[1766471448965,2.57706462,2954.1,2952.4,0.00359502]
[1766471448966,11.856,2954.0,2952.4,0.00359502]
[1766471449158,5.89,2953.9,2952.4,0.00359502]
[1766471449965,0.16942,2953.2,2952.9,9e-08]
[1766471450166,3.387,2953.1,2952.4,0.00359502]
[1766471450366,3.39023487,2953.1,2952.3,3.387]
[1766471450567,3.55966487,2953.1,2950.7,0.16956]
[1766471450769,3.55966487,2953.1,2951.1,13.471]
[1766471450968,3.55966487,2953.1,2951.2,3.387]
[1766471451168,3.55966487,2953.1,2951.9,0.00508009]
[1766471451377,3.55966487,2953.1,2951.9,3.39479047]
[1766471452975,3.55966487,2953.1,2951.9,0.00779047]
[1766471453176,0.16944,2952.9,2951.9,0.00779047]
[1766471453471,3.39023487,2953.1,2951.9,3.39579047]
[1766471454965,3.39023487,2953.1,2951.9,0.00779047]
[1766471455373,3.55966487,2953.1,2951.9,0.00779047]
[1766471456372,9.281,2953.0,2951.9,0.00779047]
[1766471456675,0.16945,2952.8,2951.9,0.00779047]
[1766471456868,3.388,2952.7,2951.9,0.00779047]
[1766471458476,3.388,2952.6,2951.9,0.00779047]
[1766471460680,0.16946,2952.5,2951.6,3.388]
[1766471461069,0.00323487,2953.1,2951.6,3.388]
[1766471461268,12.468,2953.0,2951.6,3.388]
[1766471461673,12.468,2953.0,2952.0,0.00508009]
[1766471462166,0.00323487,2953.1,2952.0,0.00508009]
[1766471462569,9.282,2953.0,2952.0,0.00508009]
[1766471465679,0.00323487,2953.1,2952.0,0.00508009]
[1766471467177,0.00323487,2953.1,2949.7,0.16962]
[1766471467178,0.16948,2952.2,2949.7,0.16962]
[1766471467378,11.891,2952.1,2949.8,11.86]
[1766471467580,2.57706462,2951.9,2949.9,3.388]
[1766471467783,3.388,2951.8,2949.9,3.388]
[1766471468184,0.00508009,2951.1,2950.6,0.00508009]
[1766471468386,3.388,2951.0,2950.6,0.00508009]
[1766471468579,3.39135469,2951.0,2950.6,0.00127842]
[1766471468986,0.00335469,2951.0,2950.6,0.00127842]
[1766471469179,0.00508009,2951.1,2950.6,0.00127842]
[1766471470180,0.00840172,2951.1,2950.6,0.00127842]
[1766471473891,3.389,2951.0,2950.2,9.855]
[1766471474993,3.389,2951.0,2950.3,0.00508009]
[1766471476185,0.00840172,2951.1,2950.3,0.00508009]
[1766471476392,3.39740172,2951.1,2950.3,0.00508009]
[1766471476987,1.72e-06,2951.1,2950.3,0.00508009]
[1766471478005,0.00508009,2951.0,2950.3,0.00508009]
[1766471478601,3.39508009,2951.0,2950.3,0.00508009]
[1766471481297,0.00508009,2951.0,2950.3,0.00508009]
[1766471481500,1.72e-06,2951.1,2950.3,0.00508009]
[1766471482499,0.00508009,2951.0,2950.3,0.00508009]
[1766471484104,0.00508009,2951.0,2950.4,3.39]
[1766471484502,3.39508009,2951.0,2950.4,3.39]
[1766471484704,3.39508009,2951.0,2950.4,3.3692]
[1766471485409,3.39508009,2951.0,2950.4,3.0543]
[1766471485602,3.39508009,2951.0,2950.4,2.9362]
[1766471486210,0.16957,2950.7,2948.8,3.39]
[1766471486412,9.286,2950.6,2948.8,3.39]
[1766471487309,0.00508009,2951.0,2948.8,3.39]
[1766471487310,3.39,2950.5,2949.4,0.00508009]
[1766471487498,3.39,2950.6,2949.5,3.39]
[1766471489609,3.39,2950.6,2949.5,6.463]
[1766471489814,3.39,2950.6,2949.6,3.39]
[1766471490311,3.39,2950.6,2949.6,3.2719]
[1766471490512,3.39,2950.6,2949.6,2.8389]
[1766471490714,3.39,2950.6,2949.6,2.7208]
[1766471491517,0.16955,2950.9,2949.6,2.7208]
[1766471491718,3.39,2950.8,2949.6,2.7208]
[1766471497125,3.391,2950.7,2949.6,2.7208]
[1766471500118,3.391,2950.7,2949.5,6.46]
[1766471500325,3.391,2950.7,2949.7,3.391]
[1766471501526,3.391,2950.7,2949.8,3.391]
[1766471504125,0.00508009,2951.0,2949.8,3.391]
[1766471504331,3.391,2950.9,2949.8,3.391]
[1766471505235,0.00508009,2951.0,2949.8,3.391]
[1766471505440,3.391,2950.9,2949.8,3.391]
[1766471508723,0.00508009,2951.0,2949.8,6.458]
[1766471508938,0.00508009,2951.0,2949.9,3.391]
[1766471509437,0.00508009,2951.0,2950.0,2.27714102]
[1766471509734,0.00508009,2951.0,2949.9,3.391]
[1766471510035,0.00508009,2951.0,2950.0,9.848]
[1766471512136,3.391,2950.9,2950.0,3.391]
[1766471514739,0.00508009,2951.0,2950.0,3.391]
[1766471516944,0.00508009,2951.0,2950.0,5.66814102]
[1766471517337,0.16947,2952.5,2950.0,5.66814102]
[1766471517539,11.9,2952.4,2950.1,3.69088587]
[1766471517738,11.9,2952.4,2950.4,2.27714102]
[1766471518043,0.16947,2952.3,2950.0,2.27714102]
[1766471518242,0.16947,2952.3,2950.1,17.516]
[1766471518444,0.00508009,2951.5,2950.9,0.00508009]
[1766471518644,0.00508009,2951.5,2951.0,3.391]
[1766471520646,0.00508009,2951.5,2951.1,3.39]
[1766471521142,3.391,2951.9,2951.1,3.39]
[1766471521542,0.00347474,2952.3,2951.1,3.39]
[1766471521747,0.00347474,2952.3,2951.1,5.66714102]
[1766471522142,0.00347474,2952.3,2951.1,3.39]
[1766471522551,4.239,2953.3,2951.5,2.27714102]
[1766471522749,3.39,2953.7,2951.9,2.27714102]
[1766471522938,3.39,2953.7,2952.0,3.39]
[1766471523248,0.00508009,2953.1,2952.6,0.00508009]
[1766471523450,0.00508009,2953.1,2952.7,3.39]
[1766471523641,0.00807907,2953.1,2952.7,3.39]
[1766471526249,0.00807907,2953.1,2952.8,3.39]
[1766471526450,0.00807907,2953.1,2952.6,6.45508009]
[1766471526451,0.00807907,2953.1,2952.6,0.00508009]
[1766471526641,0.00807907,2953.1,2952.5,3.389]
[1766471527242,0.00807907,2953.1,2951.2,2.27714102]
[1766471527451,0.00807907,2953.1,2951.6,2.27714102]
[1766471527639,0.00807907,2953.1,2952.1,0.00508009]
[1766471527953,0.00807907,2953.1,2952.2,3.389]
[1766471528546,2.27714102,2952.7,2951.3,3.389]
[1766471528750,3.389,2952.6,2951.4,3.389]
[1766471529053,3.389,2952.6,2951.5,3.389]
[1766471529255,3.389,2952.6,2951.6,3.389]
[1766471529554,3.389,2952.6,2951.8,0.00508009]
[1766471531657,3.389,2952.6,2951.8,3.39408009]
[1766471533852,3.389,2952.6,2951.8,0.00508009]
[1766471534056,3.389,2952.6,2951.9,3.389]
[1766471539567,3.389,2952.6,2951.8,0.00508009]
[1766471539762,3.389,2952.6,2951.9,3.389]
[1766471539954,3.389,2952.6,2949.4,3.393]
[1766471540265,3.389,2952.6,2951.0,3.389]
[1766471540266,0.16947,2952.4,2951.0,3.389]
[1766471540561,3.389,2952.3,2951.1,6.445]
[1766471541065,3.389,2952.3,2951.4,0.00508009]
[1766471541361,3.389,2952.3,2951.5,3.389]
[1766471541760,3.389,2952.3,2951.6,3.389]
[1766471541966,3.389,2952.3,2951.4,0.00508009]
[1766471542266,3.389,2952.3,2951.5,3.389]
[1766471544967,3.389,2952.3,2951.6,3.389]
[1766471546464,0.16946,2952.5,2951.6,3.389]
[1766471546668,3.389,2952.7,2951.4,0.00508009]
[1766471546965,3.389,2952.7,2951.5,8.723]
[1766471547162,0.16946,2952.6,2951.4,0.00508009]
[1766471547364,0.16946,2952.6,2951.5,3.389]
[1766471547560,2.44661102,2952.3,2951.4,0.00508009]
[1766471547763,3.389,2952.2,2951.4,0.00508009]
[1766471548663,3.389,2952.1,2951.4,0.00508009]
[1766471552766,0.16947,2952.3,2951.4,0.00508009]
[1766471553369,3.389,2952.8,2951.4,0.00508009]
[1766471554067,3.389,2952.8,2951.5,3.393]
[1766471554269,3.389,2952.8,2951.4,3.92408009]
[1766471554574,3.389,2952.8,2951.6,3.389]
[1766471556471,3.389,2952.8,2951.4,0.00508009]
[1766471556673,3.389,2952.8,2951.5,9.127]
[1766471559978,0.00807907,2953.1,2951.5,9.127]
[1766471561177,0.00807907,2953.1,2951.6,3.73710069]
[1766471561573,0.00807907,2953.1,2951.7,18.3]
[1766471561877,0.00807907,2953.1,2951.8,18.3]
[1766471562078,0.00807907,2953.1,2951.8,22.12908028]
[1766471562479,0.00807907,2953.1,2951.8,18.3]
[1766471562875,0.00807907,2953.1,2951.6,0.16951]
[1766471563071,0.00807907,2953.1,2951.9,6.438]
[1766471563275,0.00807907,2953.1,2952.0,3.389]
[1766471563474,3.389,2953.5,2952.0,3.389]
[1766471563670,10.199,2954.3,2952.0,3.389]
[1766471563976,10.199,2954.3,2952.1,3.88607948]
[1766471563977,9.284,2954.2,2952.1,3.88607948]
[1766471564476,0.00508009,2953.4,2952.9,0.00508009]
[1766471564666,3.389,2953.9,2953.0,3.389]
[1766471564871,3.389,2953.9,2953.0,3.39321839]
[1766471565074,5.89774448,2954.2,2953.0,3.39321839]
[1766471565075,0.00274448,2954.2,2953.0,3.39321839]
[1766471565272,0.00274448,2954.2,2953.1,9.826]
[1766471565876,0.00508009,2953.9,2953.2,9.825]
[1766471568484,0.00274448,2954.2,2953.2,9.825]
[1766471569486,0.00508009,2954.0,2953.2,9.825]
[1766471570181,0.00274448,2954.2,2953.2,9.825]
[1766471570578,10.36832,2954.9,2953.2,9.825]
[1766471570780,0.16932,2954.9,2953.2,9.825]
[1766471570978,3.388,2954.8,2953.2,9.825]
[1766471571185,3.388,2954.8,2953.0,0.00421839]
[1766471571385,3.388,2954.8,2953.1,0.005]
[1766471571586,3.39097064,2954.8,2953.1,3.393]
[1766471572483,0.16934,2954.7,2953.1,3.393]
[1766471572681,0.16934,2954.7,2953.2,6.433]
[1766471572880,0.16934,2954.7,2953.0,0.00421839]
[1766471573080,0.16934,2954.7,2953.1,3.873]
[1766471573788,0.16934,2954.7,2953.0,0.00421839]
[1766471573983,0.16934,2954.7,2953.1,3.892]
[1766471575280,3.39097064,2954.8,2953.2,3.56250382]
[1766471575779,3.39097064,2954.8,2953.3,14.137]
[1766471576774,3.39097064,2954.8,2953.4,18.288]
[1766471576981,3.39097064,2954.8,2953.0,0.00421839]
[1766471577283,3.39097064,2954.8,2953.1,15.68467492]
[1766471579888,3.39097064,2954.8,2953.2,18.291]
[1766471581295,3.39097064,2954.8,2953.3,3.91042281]
[1766471583497,3.39097064,2954.8,2953.4,15.931]
[1766471584090,0.00297064,2954.8,2953.4,15.931]
[1766471585493,0.00297064,2954.8,2953.0,33.87421839]
[1766471585700,0.00297064,2954.8,2953.4,8.467]
[1766471585897,0.00297064,2954.8,2953.5,9.833]
[1766471587400,0.00297064,2954.8,2953.0,0.00421839]
[1766471587601,0.00297064,2954.8,2953.1,13.421]
[1766471587795,0.00297064,2954.8,2953.1,17.1533185]
[1766471588601,0.00297064,2954.8,2953.2,9.833]
[1766471589801,0.00297064,2954.8,2953.0,0.00421839]
[1766471590005,0.00297064,2954.8,2953.3,6.447]
[1766471590204,0.00297064,2954.8,2953.4,3.386]
[1766471591502,0.00297064,2954.8,2953.5,9.833]
[1766471591700,0.00297064,2954.8,2953.6,3.386]
[1766471594000,0.00297064,2954.8,2953.7,8.032]
[1766471594306,0.00297064,2954.8,2953.0,0.00421839]
[1766471594307,0.00297064,2954.8,2953.8,9.832]
[1766471594694,0.00297064,2954.8,2953.0,0.00421839]
[1766471594899,0.00297064,2954.8,2953.1,3.391]
[1766471595100,0.00297064,2954.8,2953.0,0.00421839]
[1766471595296,0.00297064,2954.8,2953.2,6.445]
[1766471595911,1.51427836,2954.5,2953.2,6.445]
[1766471596203,1.51427836,2954.2,2953.0,0.00421839]
[1766471596397,3.386,2954.1,2953.1,3.749]
[1766471596597,3.386,2954.1,2953.2,3.386]
[1766471598313,1.51427836,2953.3,2952.7,3.386]
[1766471598513,1.51427836,2953.3,2952.7,3.38092003]
[1766471598717,10.199,2954.2,2952.7,3.38092003]
[1766471598718,4.90027836,2953.6,2952.7,3.38092003]
[1766471599105,3.386,2953.6,2952.7,3.38092003]
[1766471599411,3.386,2953.6,2952.9,0.00508009]
[1766471599613,3.386,2954.1,2953.0,9.562]
[1766471599812,4.90127836,2954.3,2953.0,9.562]
[1766471600106,1.51427836,2954.0,2953.0,9.562]
[1766471600313,4.90127836,2954.0,2953.1,9.831]
[1766471600902,3.387,2954.0,2953.1,9.831]
[1766471605017,3.387,2954.0,2953.2,6.443]
[1766471605211,3.387,2954.0,2953.2,9.83]
[1766471606421,3.387,2954.0,2952.9,0.00508009]
[1766471606619,3.387,2954.0,2953.0,3.392]
[1766471606820,3.387,2954.0,2952.9,0.00508009]
[1766471607016,3.387,2954.0,2953.0,3.392]
[1766471608513,0.16937,2954.1,2953.0,3.392]
[1766471608824,3.55637,2954.1,2953.0,3.392]
[1766471614127,3.387,2954.1,2953.0,3.392]
[1766471614324,3.387,2954.4,2953.0,3.392]
[1766471615130,3.55634,2954.7,2953.1,3.77106174]
[1766471615329,3.55634,2954.7,2953.2,8.468]
[1766471615529,3.55634,2954.7,2953.3,3.387]
[1766471615926,3.55634,2954.7,2952.9,0.00508009]
[1766471616122,3.55634,2954.7,2953.0,18.295]
[1766471616330,3.55634,2954.7,2953.1,18.295]
[1766471616826,3.55634,2954.7,2953.2,3.61068916]
[1766471617023,3.387,2954.7,2953.2,3.61068916]
[1766471617619,0.00297064,2954.8,2953.2,3.61068916]
[1766471619930,3.387,2955.0,2953.2,3.61068916]
[1766471620630,3.387,2955.4,2953.5,2.27157864]
[1766471620829,3.38947453,2955.4,2953.6,9.827]
[1766471621029,3.38947453,2955.4,2953.6,13.52045449]
[1766471622430,0.00247453,2955.4,2953.6,13.52045449]
[1766471622620,0.00247453,2955.4,2953.9,2.27157864]
[1766471622823,0.00247453,2955.4,2954.0,11.853]
[1766471623023,0.00247453,2955.4,2954.4,0.00508009]
[1766471623226,0.00247453,2955.4,2954.5,3.386]
[1766471623432,0.00247453,2955.4,2954.6,6.438]
[1766471624129,0.00247453,2955.4,2954.4,0.00508009]
[1766471624333,0.00247453,2955.4,2954.5,3.386]
[1766471624632,0.62728066,2956.4,2954.6,14.12457864]
[1766471624633,0.16924,2956.4,2954.6,14.12457864]
[1766471624932,3.386,2956.3,2954.7,9.824]
[1766471625436,3.386,2956.2,2954.7,9.824]
[1766471625633,3.39012152,2956.2,2954.7,9.824]
[1766471626035,4.90255249,2956.2,2954.8,1.51243097]
[1766471626332,4.90255249,2956.2,2954.8,1.51637542]
[1766471626731,0.00412152,2956.2,2954.8,0.00394445]
[1766471626935,1.51243097,2956.1,2954.9,1.51243097]
[1766471627233,1.51243097,2956.1,2955.0,3.386]
[1766471627539,0.00412152,2956.2,2955.5,1.51243097]
[1766471627729,0.00412152,2956.2,2955.6,9.68]
[1766471627927,3.386,2956.5,2955.6,9.68]
[1766471628238,4.89843097,2956.5,2955.6,9.68]
[1766471628440,3.386,2956.5,2955.6,9.68]
[1766471629131,3.3887526,2956.5,2955.7,1.51243097]
[1766471629630,4.90118357,2956.5,2955.2,1.51243097]
[1766471629835,4.90118357,2956.5,2955.6,6.435]
[1766471630131,3.3887526,2956.5,2955.7,3.386]
[1766471630831,3.3887526,2956.5,2955.8,3.386]
[1766471631228,1.51243097,2956.2,2955.0,9.97643097]
[1766471631534,4.89743097,2956.2,2955.1,9.819]
[1766471632436,3.385,2956.2,2955.1,9.819]
[1766471632638,4.89743097,2956.2,2955.1,9.819]
[1766471633334,1.51243097,2956.0,2955.1,9.819]
[1766471634135,4.89743097,2956.2,2955.1,9.819]
[1766471635231,1.51243097,2956.0,2955.1,9.819]
[1766471635737,1.51243097,2955.7,2954.8,0.00394445]
[1766471635933,1.51243097,2955.5,2954.8,3.38894445]
[1766471636138,4.89743097,2955.5,2954.8,3.38894445]
[1766471637232,3.385,2955.5,2954.8,3.38894445]
[1766471637634,3.385,2955.7,2954.8,3.38894445]
[1766471638030,4.89743097,2955.7,2954.8,3.38894445]
[1766471638541,1.51243097,2955.5,2954.8,0.00394445]
[1766471638833,1.51243097,2955.5,2954.8,3.38894445]
[1766471639227,1.51243097,2955.3,2954.8,0.00394445]
[1766471639426,1.51243097,2955.1,2954.8,0.00394445]
[1766471639644,3.385,2955.3,2954.8,0.00394445]
[1766471639934,4.89743097,2955.3,2954.8,0.00394445]
[1766471640438,3.385,2955.3,2954.8,0.00394445]
[1766471640835,3.385,2955.3,2952.9,0.16944]
[1766471640836,1.51243097,2954.9,2952.9,0.16944]
[1766471641036,1.51243097,2954.1,2953.0,3.488]
[1766471641335,1.51243097,2954.3,2953.1,3.385]
[1766471641737,3.385,2954.4,2953.2,1.51243097]
[1766471641936,0.00508009,2954.1,2953.5,0.00508009]
[1766471642340,0.00508009,2954.1,2953.5,3.39008009]
[1766471646741,3.39108009,2954.1,2953.5,0.00508009]
[1766471651041,0.16938,2954.0,2953.1,0.00263917]
[1766471652244,0.16938,2954.0,2953.3,0.00508009]
[1766471653542,3.39108009,2954.1,2953.3,3.39108009]
[1766471656441,0.00508009,2954.1,2953.3,3.39108009]
[1766471658353,0.16934,2954.6,2953.4,4.31]
[1766471658649,3.387,2954.8,2953.5,3.5993018]
[1766471658954,3.387,2956.0,2954.1,2.27128401]
[1766471659147,3.387,2955.9,2954.2,18.282]
[1766471659449,0.00508009,2955.3,2954.8,0.00508009]
[1766471659655,0.00508009,2955.3,2954.8,3.39208009]
[1766471660757,0.00354461,2955.9,2954.8,3.39208009]
[1766471660951,3.386,2955.8,2954.8,3.39208009]
[1766471661360,3.386,2955.8,2954.8,9.81908009]
[1766471665977,3.386,2955.8,2954.8,11.33151235]
[1766471666572,3.386,2955.8,2955.0,1.51243226]
[1766471666868,3.386,2955.8,2955.1,3.386]
[1766471667680,3.386,2955.8,2955.2,1.51243226]
[1766471667875,3.386,2955.8,2955.2,1.51548719]
[1766471669075,0.00354461,2955.9,2955.2,1.51548719]
[1766471669277,9.276,2956.1,2955.4,1.51243226]
[1766471669480,9.276,2956.1,2955.4,4.89743226]
[1766471669675,3.386,2956.1,2955.4,4.89743226]
[1766471669978,3.385,2956.4,2955.4,3.385]
[1766471670178,3.38837869,2956.4,2955.4,3.385]
[1766471670670,0.00337869,2956.4,2955.4,9.807]
[1766471670877,0.00337869,2956.4,2955.4,11.31869214]
[1766471671473,0.1692,2957.2,2955.7,1.51169214]
[1766471671774,7.442,2957.1,2955.8,3.385]
[1766471672175,0.1692,2957.2,2955.8,3.385]
[1766471672376,3.385,2957.1,2955.8,3.385]
[1766471675576,204.32760634,2959.9,2955.8,3.385]
[1766471675774,0.16913,2958.4,2957.6,1.42e-06]
[1766471675981,0.16915,2958.0,2956.7,3.385]
[1766471676182,3.385,2957.9,2955.2,2.56914678]
[1766471676480,5.889,2957.8,2955.6,3.69950155]
[1766471676675,0.16917,2957.7,2955.7,11.848]
[1766471676881,5.54917,2957.7,2955.8,18.267]
[1766471677080,0.00504252,2957.0,2956.4,0.00507142]
[1766471677283,0.00504252,2957.0,2956.5,3.385]
[1766471678085,8.93417,2957.7,2956.5,3.385]
[1766471678380,3.55417,2957.7,2956.5,3.385]
[1766471678987,3.385,2957.7,2956.5,3.385]
[1766471679684,0.00411236,2957.8,2956.5,3.385]
[1766471681088,0.00411236,2957.8,2956.6,8.461]
[1766471681289,3.55312,2958.4,2956.7,2.56914678]
[1766471681491,3.55312,2958.4,2956.8,3.384]
[1766471681690,3.55312,2958.4,2956.9,9.801]
[1766471681891,0.16915,2957.9,2955.6,2.5721935]
[1766471682191,3.384,2957.9,2956.2,3.62648308]
[1766471682389,3.3879758,2957.9,2956.3,4.944]
[1766471682688,3.3879758,2957.9,2956.4,21.88748308]
[1766471682884,3.3879758,2957.9,2956.9,0.00507142]
[1766471682885,0.00507142,2957.4,2956.9,0.00507142]
[1766471683089,0.0039758,2957.9,2957.0,9.801]
[1766471684389,3.384,2958.2,2957.0,9.801]
[1766471685081,3.384,2958.2,2956.9,0.00507142]
[1766471685082,3.384,2958.2,2957.1,9.8]
[1766471685283,3.38639754,2958.2,2957.1,9.8]
[1766471685583,3.38639754,2958.2,2956.9,0.00507142]
[1766471685584,3.38639754,2958.2,2957.0,6.416]
[1766471685891,3.38639754,2958.2,2957.2,3.384]
[1766471686286,3.55553754,2958.2,2957.2,3.384]
[1766471686792,3.55553754,2958.2,2957.0,6.416]
[1766471688493,3.55553754,2958.2,2956.9,0.00507142]
[1766471688684,3.55553754,2958.2,2957.0,3.383]
[1766471690194,0.16914,2958.1,2957.0,3.383]
[1766471690397,0.16915,2957.9,2956.9,0.00507142]
[1766471690692,0.16915,2957.9,2941.9,16.78751868]
[1766471690693,14.784,2957.8,2955.3,2.56914678]
[1766471690897,3.383,2957.7,2955.8,8.459]
[1766471691798,0.00507142,2957.0,2956.5,0.00507142]
[1766471692095,0.00507142,2957.0,2956.5,3.38807142]
[1766471693294,3.383,2957.3,2956.5,3.38807142]
[1766471693892,3.383,2957.3,2955.6,0.00304672]
[1766471694095,0.1692,2957.1,2955.7,8.512]
[1766471694289,3.383,2957.0,2955.7,8.512]
[1766471694888,0.00507142,2956.6,2956.1,0.00507142]
[1766471695102,0.00507142,2956.6,2956.1,0.00152685]
[1766471698399,0.00507142,2956.6,2956.1,2.685e-05]
[1766471701594,0.00507142,2956.6,2956.2,3.384]
[1766471701795,3.384,2957.4,2956.2,9.795]